[Event "Kvibergspelen 2018"]
[Site "Prioritet Serneke Arena, Krutvagen 2, Gothenburg, Sweden"]
[Date "2018.04.22"]
[Round "8.17"]
[White "Bellon Lopez, Juan"]
[Black "Sjolander, Anders"]
[Result "1-0"]
[TimeControl "15 minutes + 5 seconds per move from move one (Round 1 - 4) / 90 minutes + 30 seconds per move from move one (Round 5 - 8)"]
[WhiteTitle "GM"]
[WhiteFideId "2200031"]
[BlackFideId "1711903"]
[WhiteElo "2352"]
[BlackElo "1977"]

1. d4 {[%clk 01:30:59]} {[%emt 00:51:57]} d5 {[%clk 01:30:55]} {[%emt
00:00:05]} 2. Bf4 {[%clk 01:31:04]} {[%emt 00:00:24]} Nc6 {[%clk 01:28:16]}
{[%emt 00:03:10]} 3. e3 {[%clk 01:31:15]} {[%emt 00:00:18]} e6 {[%clk
01:26:47]} {[%emt 00:01:59]} 4. c3 {[%clk 01:29:03]} {[%emt 00:02:41]} Bd6
{[%clk 01:27:02]} {[%emt 00:00:16]} 5. Bg3 {[%clk 01:28:48]} {[%emt 00:00:44]}
Nh6 {[%clk 01:26:15]} {[%emt 00:01:18]} 6. Nf3 {[%clk 01:24:32]} {[%emt
00:04:46]} Nf5 {[%clk 01:26:36]} {[%emt 00:00:09]} 7. Bb5 {[%clk 01:23:43]}
{[%emt 00:01:19]} Bd7 {[%clk 01:21:59]} {[%emt 00:05:07]} 8. Nbd2 {[%clk
01:22:41]} {[%emt 00:01:31]} Nxg3 {[%clk 01:20:32]} {[%emt 00:01:58]} 9. hxg3
{[%clk 01:21:51]} {[%emt 00:01:21]} Ne7 {[%clk 01:18:59]} {[%emt 00:02:02]} 10.
Bd3 {[%clk 01:21:22]} {[%emt 00:00:58]} Ng6 {[%clk 01:12:23]} {[%emt 00:07:07]}
11. Qc2 {[%clk 01:15:13]} {[%emt 00:06:39]} f5 {[%clk 01:01:10]} {[%emt
00:11:43]} 12. g4 {[%clk 01:15:10]} {[%emt 00:00:32]} Qf6 {[%clk 01:00:46]}
{[%emt 00:00:54]} 13. Rh5 {[%clk 01:10:30]} {[%emt 00:05:10]} Ne7 {[%clk
00:58:19]} {[%emt 00:02:58]} 14. g5 {[%clk 01:08:15]} {[%emt 00:02:44]} Qf8
{[%clk 00:41:15]} {[%emt 00:17:35]} 15. O-O-O {[%clk 01:08:00]} {[%emt
00:00:44]} g6 {[%clk 00:41:17]} {[%emt 00:00:28]} 16. Rh6 {[%clk 01:06:30]}
{[%emt 00:02:00]} O-O-O {[%clk 00:41:13]} {[%emt 00:00:36]} 17. Rdh1 {[%clk
01:06:48]} {[%emt 00:00:11]} Qg7 {[%clk 00:41:24]} {[%emt 00:00:18]} 18. c4
{[%clk 01:06:40]} {[%emt 00:00:38]} c6 {[%clk 00:41:47]} {[%emt 00:00:07]} 19.
Qc3 {[%clk 01:03:38]} {[%emt 00:03:33]} Kb8 {[%clk 00:38:32]} {[%emt 00:03:46]}
20. c5 {[%clk 01:03:48]} {[%emt 00:00:19]} Bc7 {[%clk 00:38:37]} {[%emt
00:00:25]} 21. Ne5 {[%clk 01:04:08]} {[%emt 00:00:10]} Be8 {[%clk 00:34:55]}
{[%emt 00:04:12]} 22. Ndf3 {[%clk 00:55:58]} {[%emt 00:08:38]} Ng8 {[%clk
00:33:26]} {[%emt 00:02:01]} 23. R6h4 {[%clk 00:55:15]} {[%emt 00:01:12]} h5
{[%clk 00:31:56]} {[%emt 00:02:00]} 24. b4 {[%clk 00:51:00]} {[%emt 00:04:46]}
Rc8 {[%clk 00:31:44]} {[%emt 00:00:42]} 25. Kd2 {[%clk 00:50:57]} {[%emt
00:00:32]} Bd8 {[%clk 00:32:05]} {[%emt 00:00:09]} 26. a4 {[%clk 00:50:29]}
{[%emt 00:00:59]} Rh7 {[%clk 00:31:39]} {[%emt 00:00:55]} 27. Rb1 {[%clk
00:49:46]} {[%emt 00:01:13]} Ka8 {[%clk 00:30:39]} {[%emt 00:01:31]} 28. Rhh1
{[%clk 00:44:06]} {[%emt 00:06:10]} Qc7 {[%clk 00:19:03]} {[%emt 00:12:04]} 29.
Rb3 {[%clk 00:42:06]} {[%emt 00:02:32]} Rg7 {[%clk 00:18:43]} {[%emt 00:00:51]}
30. g3 {[%clk 00:41:15]} {[%emt 00:01:20]} Qb8 {[%clk 00:16:21]} {[%emt
00:02:52]} 31. b5 {[%clk 00:33:56]} {[%emt 00:07:49]} Ne7 {[%clk 00:07:53]}
{[%emt 00:08:58]} 32. Rhb1 {[%clk 00:33:26]} {[%emt 00:00:59]} Rh7 {[%clk
00:05:58]} {[%emt 00:02:26]} 33. Nh4 {[%clk 00:28:08]} {[%emt 00:05:48]} Rg7
{[%clk 00:05:47]} {[%emt 00:00:41]} 34. f4 {[%clk 00:28:31]} {[%emt 00:00:07]}
Bc7 {[%clk 00:05:43]} {[%emt 00:00:34]} 35. b6 {[%clk 00:25:02]} {[%emt
00:03:59]} Bxe5 {[%clk 00:05:51]} {[%emt 00:00:22]} 36. dxe5 {[%clk 00:24:52]}
{[%emt 00:00:40]} Ng8 {[%clk 00:05:51]} {[%emt 00:00:30]} 37. Qa5 {[%clk
00:24:52]} {[%emt 00:00:30]} Rd7 {[%clk 00:04:30]} {[%emt 00:01:51]} 38. Nf3
{[%clk 00:25:05]} {[%emt 00:00:18]} Bf7 {[%clk 00:03:47]} {[%emt 00:01:13]} 39.
Nd4 {[%clk 00:25:10]} {[%emt 00:00:24]} Ne7 {[%clk 00:03:56]} {[%emt 00:00:21]}
40. Ra1 {[%clk 00:22:25]} {[%emt 00:03:15]} Rh8 {[%clk 00:04:09]} {[%emt
00:00:17]} 41. Nb5 {[%clk 00:21:57]} {[%emt 00:00:58]} Nc8 {[%clk 00:02:51]}
{[%emt 00:01:48]} 42. Nc7+ {[%emt 00:00:33]} 1-0

[Event "Kvibergspelen 2018"]
[Site "Prioritet Serneke Arena, Krutvagen 2, Gothenburg, Sweden"]
[Date "2018.04.22"]
[Round "8.18"]
[White "Sorensen, Hampus"]
[Black "Moller, Mikael"]
[Result "1-0"]
[TimeControl "15 minutes + 5 seconds per move from move one (Round 1 - 4) / 90 minutes + 30 seconds per move from move one (Round 5 - 8)"]
[WhiteFideId "8703884"]
[BlackFideId "1738461"]
[WhiteElo "2243"]
[BlackElo "1962"]

1. d4 {[%clk 01:28:27]} {[%emt 00:02:32]} f5 {[%clk 01:30:54]} {[%emt
00:00:07]} 2. Nf3 {[%clk 01:28:41]} {[%emt 00:00:16]} e6 {[%clk 01:31:18]}
{[%emt 00:00:07]} 3. g3 {[%clk 01:27:55]} {[%emt 00:01:15]} Nf6 {[%clk
01:31:42]} {[%emt 00:00:06]} 4. Bg2 {[%clk 01:28:05]} {[%emt 00:00:20]} d5
{[%clk 01:31:34]} {[%emt 00:00:38]} 5. O-O {[%clk 01:27:40]} {[%emt 00:00:54]}
Bd6 {[%clk 01:31:45]} {[%emt 00:00:20]} 6. c4 {[%clk 01:27:37]} {[%emt
00:00:33]} c6 {[%clk 01:32:09]} {[%emt 00:00:06]} 7. b3 {[%clk 01:27:32]}
{[%emt 00:00:35]} O-O {[%clk 01:32:24]} {[%emt 00:00:16]} 8. Ba3 {[%clk
01:26:49]} {[%emt 00:01:13]} Ne4 {[%clk 01:32:10]} {[%emt 00:00:44]} 9. Bxd6
{[%clk 01:20:56]} {[%emt 00:06:22]} Qxd6 {[%clk 01:31:59]} {[%emt 00:00:42]} 10.
Nbd2 {[%clk 01:19:56]} {[%emt 00:01:30]} Nd7 {[%clk 01:31:55]} {[%emt
00:00:34]} 11. Qc2 {[%clk 01:14:37]} {[%emt 00:05:48]} b6 {[%clk 01:31:59]}
{[%emt 00:00:26]} 12. Rac1 {[%clk 01:12:16]} {[%emt 00:02:51]} Ba6 {[%clk
01:32:17]} {[%emt 00:00:13]} 13. Rfd1 {[%clk 01:10:19]} {[%emt 00:02:26]} Rac8
{[%clk 01:32:27]} {[%emt 00:00:20]} 14. Qb2 {[%clk 01:08:24]} {[%emt 00:02:25]}
Qe7 {[%clk 01:25:10]} {[%emt 00:07:45]} 15. e3 {[%clk 01:03:43]} {[%emt
00:05:12]} Qd6 {[%clk 01:13:54]} {[%emt 00:11:46]} 16. Bf1 {[%clk 00:59:55]}
{[%emt 00:04:18]} Qe7 {[%clk 01:13:14]} {[%emt 00:01:10]} 17. b4 {[%clk
00:58:39]} {[%emt 00:01:47]} Bxc4 {[%clk 01:06:15]} {[%emt 00:07:29]} 18. Nxc4
{[%clk 00:58:07]} {[%emt 00:01:02]} dxc4 {[%clk 01:06:31]} {[%emt 00:00:14]} 19.
Bxc4 {[%clk 00:57:05]} {[%emt 00:01:32]} Kh8 {[%clk 01:01:19]} {[%emt
00:05:41]} 20. a4 {[%clk 00:54:04]} {[%emt 00:03:32]} Rc7 {[%clk 00:53:16]}
{[%emt 00:08:32]} 21. Qb3 {[%clk 00:49:54]} {[%emt 00:04:41]} Re8 {[%clk
00:53:17]} {[%emt 00:00:29]} 22. Rc2 {[%clk 00:48:10]} {[%emt 00:02:13]} c5
{[%clk 00:46:45]} {[%emt 00:07:02]} 23. bxc5 {[%clk 00:44:26]} {[%emt
00:04:15]} bxc5 {[%clk 00:47:09]} {[%emt 00:00:07]} 24. Rdc1 {[%clk 00:44:17]}
{[%emt 00:00:37]} cxd4 {[%clk 00:46:42]} {[%emt 00:00:57]} 25. exd4 {[%clk
00:44:38]} {[%emt 00:00:09]} Nd6 {[%clk 00:39:17]} {[%emt 00:07:56]} 26. Ba6
{[%clk 00:40:27]} {[%emt 00:04:41]} Rxc2 {[%clk 00:39:23]} {[%emt 00:00:24]} 27.
Qxc2 {[%clk 00:40:48]} {[%emt 00:00:09]} Nb6 {[%clk 00:37:23]} {[%emt
00:02:30]} 28. Ne5 {[%clk 00:37:58]} {[%emt 00:03:20]} Nd5 {[%clk 00:37:27]}
{[%emt 00:00:25]} 29. Qc5 {[%clk 00:37:46]} {[%emt 00:00:41]} g6 {[%clk
00:35:51]} {[%emt 00:02:06]} 30. Qxd6 {[%clk 00:37:28]} {[%emt 00:00:49]} 1-0

[Event "Kvibergspelen 2018"]
[Site "Prioritet Serneke Arena, Krutvagen 2, Gothenburg, Sweden"]
[Date "2018.04.22"]
[Round "8.20"]
[White "Wickstrom, Tommy"]
[Black "Bengtsson, Siv"]
[Result "1/2-1/2"]
[TimeControl "15 minutes + 5 seconds per move from move one (Round 1 - 4) / 90 minutes + 30 seconds per move from move one (Round 5 - 8)"]
[WhiteFideId "1713442"]
[BlackFideId "1701673"]
[WhiteElo "1977"]
[BlackElo "2125"]

1. d4 {[%clk 01:30:56]} {[%emt 00:00:02]} Nf6 {[%clk 01:30:50]} {[%emt
00:00:10]} 2. c4 {[%clk 01:31:22]} {[%emt 00:00:05]} g6 {[%clk 01:31:09]}
{[%emt 00:00:10]} 3. Nc3 {[%clk 01:31:50]} {[%emt 00:00:02]} d5 {[%clk
01:31:19]} {[%emt 00:00:21]} 4. Bf4 {[%clk 01:32:11]} {[%emt 00:00:08]} Bg7
{[%clk 01:24:42]} {[%emt 00:07:07]} 5. Nf3 {[%clk 01:32:36]} {[%emt 00:00:06]}
O-O {[%clk 01:23:16]} {[%emt 00:01:55]} 6. Rc1 {[%clk 01:33:02]} {[%emt
00:00:04]} dxc4 {[%clk 01:21:24]} {[%emt 00:02:22]} 7. e3 {[%clk 01:29:14]}
{[%emt 00:04:19]} Nc6 {[%clk 01:16:24]} {[%emt 00:05:27]} 8. Bxc4 {[%clk
01:29:02]} {[%emt 00:00:45]} Nh5 {[%clk 01:12:16]} {[%emt 00:04:38]} 9. Bg3
{[%clk 01:29:27]} {[%emt 00:00:05]} Nxg3 {[%clk 01:11:45]} {[%emt 00:01:01]} 10.
hxg3 {[%clk 01:29:52]} {[%emt 00:00:05]} Bg4 {[%clk 01:11:34]} {[%emt
00:00:40]} 11. Rxh7 {[%clk 01:21:24]} {[%emt 00:08:58]} Bxf3 {[%clk 01:07:30]}
{[%emt 00:04:35]} 12. Rxg7+ {[%clk 01:21:38]} {[%emt 00:00:16]} Kxg7 {[%clk
01:07:51]} {[%emt 00:00:09]} 13. Qxf3 {[%clk 01:21:32]} {[%emt 00:00:35]} e5
{[%clk 00:54:59]} {[%emt 00:13:22]} 14. d5 {[%clk 01:19:06]} {[%emt 00:02:57]}
Ne7 {[%clk 00:54:54]} {[%emt 00:00:35]} 15. Qe4 {[%clk 01:10:19]} {[%emt
00:09:17]} f6 {[%clk 00:52:32]} {[%emt 00:02:52]} 16. f4 {[%clk 01:08:08]}
{[%emt 00:02:40]} exf4 {[%clk 00:51:52]} {[%emt 00:01:10]} 17. Qxf4 {[%clk
01:06:13]} {[%emt 00:02:25]} Nf5 {[%clk 00:51:06]} {[%emt 00:01:15]} 18. Bd3
{[%clk 01:04:16]} {[%emt 00:02:28]} Nd6 {[%clk 00:48:32]} {[%emt 00:03:04]} 19.
Ke2 {[%clk 00:59:40]} {[%emt 00:05:05]} Rc8 {[%clk 00:30:28]} {[%emt 00:18:33]}
20. Bxg6 {[%clk 00:58:05]} {[%emt 00:02:06]} Kxg6 {[%clk 00:20:45]} {[%emt
00:10:13]} 21. Qg4+ {[%clk 00:58:24]} {[%emt 00:00:12]} Kf7 {[%clk 00:20:36]}
{[%emt 00:00:38]} 22. Qe6+ {[%emt 00:02:03]} 1/2-1/2